bitfinex/quotes_SOLUSD_20230905
["timestamp","ask_amount","ask_price","bid_price","bid_amount"]
[1693950641720,0.49999999,20.291,20.283,3.0]
[1693950641901,8.18799999,20.291,20.283,3.0]
[1693950642101,7.688,20.291,20.282,55.0]
[1693950642301,7.688,20.291,20.283,3.0]
[1693950646103,7.688,20.291,20.279,3.0]
[1693950646314,0.49999999,20.29,20.279,58.0]
[1693950646501,7.688,20.291,20.279,58.0]
[1693950646702,7.689,20.289,20.279,58.0]
[1693950648213,7.689,20.289,20.28,55.0]
[1693950648516,7.689,20.289,20.281,3.0]
[1693950648517,61.905,20.289,20.281,3.0]
[1693950648714,0.49999999,20.288,20.272,30.0]
[1693950648914,7.691,20.284,20.273,23.0]
[1693950649516,7.691,20.284,20.273,3.0]
[1693950649910,27.691,20.284,20.273,3.0]
[1693950650620,27.691,20.284,20.273,58.0]
[1693950651202,27.691,20.284,20.273,3.0]
[1693950651610,27.691,20.284,20.272,3.0]
[1693950656010,27.691,20.284,20.272,10.695]
[1693950656206,27.691,20.284,20.273,20.0]
[1693950656418,27.691,20.284,20.274,3.0]
[1693950658318,7.69,20.285,20.274,58.0]
[1693950658521,7.69,20.285,20.274,3.0]
[1693950659015,7.69,20.285,20.273,58.0]
[1693950663218,7.69,20.285,20.273,3.0]
[1693950663619,7.69,20.285,20.272,58.0]
[1693950663821,7.69,20.285,20.272,3.0]
[1693950663822,20.0,20.284,20.272,3.0]
[1693950664021,29.54,20.28,20.272,58.0]
[1693950664526,7.692,20.281,20.27,3.0]
[1693950664727,29.54,20.28,20.27,3.0]
[1693950664921,37.232,20.28,20.27,3.0]
[1693950665937,37.232,20.28,20.268,58.0]
[1693950671943,37.232,20.28,20.268,65.696]
[1693950672941,7.692,20.28,20.268,65.696]
[1693950680249,7.692,20.28,20.268,58.0]
[1693950680462,7.692,20.28,20.268,3.0]
[1693950680657,37.232,20.28,20.267,3.0]
[1693950680838,37.232,20.28,20.267,10.696]
[1693950681852,37.232,20.28,20.268,55.0]
[1693950682046,37.232,20.28,20.269,3.0]
[1693950682750,29.54,20.28,20.269,3.0]
[1693950682952,37.232,20.28,20.269,3.0]
[1693950683443,7.692,20.28,20.269,3.0]
[1693950684640,74.234,20.284,20.272,7.695]
[1693950684953,7.691,20.282,20.273,58.0]
[1693950685141,32.54,20.282,20.273,3.0]
[1693950685342,0.49999999,20.281,20.269,3.0]
[1693950685550,7.692,20.28,20.269,3.0]
[1693950686953,7.691,20.282,20.27,7.695]
[1693950687153,7.691,20.282,20.272,3.0]
[1693950690161,7.691,20.282,20.271,3.0]
[1693950691646,7.691,20.282,20.27,3.0]
[1693950695546,0.49999999,20.281,20.27,3.0]
[1693950695779,7.692,20.28,20.27,3.0]
[1693950707272,7.692,20.28,20.27,32.54]
[1693950707574,7.692,20.28,20.272,3.0]
[1693950708577,7.691,20.282,20.272,3.0]
[1693950718170,8.18999999,20.284,20.272,3.0]
[1693950718371,20.0,20.283,20.272,3.0]
[1693950718675,0.49999999,20.282,20.272,3.0]
[1693950720670,27.691,20.283,20.272,3.0]
[1693950721275,0.49999999,20.282,20.272,3.0]
[1693950722280,7.692,20.281,20.272,3.0]
[1693950722580,0.49999999,20.28,20.271,3.0]
[1693950722784,0.49999999,20.28,20.267,3.0]
[1693950723082,0.49999999,20.28,20.264,3.0]
[1693950723289,0.49999999,20.28,20.264,33.0]
[1693950723469,7.692,20.281,20.264,33.0]
[1693950723669,7.692,20.281,20.265,55.0]
[1693950723880,7.692,20.281,20.266,3.0]
[1693950724080,7.692,20.281,20.267,7.696]
[1693950724283,7.692,20.281,20.268,58.0]
[1693950729882,0.49999999,20.28,20.268,58.0]
[1693950730582,0.49999999,20.282,20.268,65.696]
[1693950737287,0.49999999,20.282,20.268,10.696]
[1693950737496,8.19099999,20.282,20.268,3.0]
[1693950737690,8.19099999,20.282,20.268,10.696]
[1693950737994,8.19099999,20.282,20.27,3.0]
[1693950737995,7.691,20.282,20.27,3.0]
[1693950738197,8.18999999,20.284,20.27,3.0]
[1693950738677,7.69,20.284,20.27,3.0]
[1693950738878,0.49999999,20.283,20.27,3.0]
[1693950740588,8.19099999,20.283,20.269,3.0]
[1693950740785,0.49999999,20.283,20.27,7.695]
[1693950740988,0.49999999,20.284,20.271,58.0]
[1693950741195,0.49999999,20.284,20.272,20.0]
[1693950741389,7.69,20.285,20.273,58.0]
[1693950741886,0.49999999,20.284,20.273,58.0]
[1693950742286,7.69,20.285,20.273,58.0]
[1693950746098,8.18899999,20.287,20.273,58.0]
[1693950746287,7.689,20.289,20.274,7.694]
[1693950746490,0.49999999,20.288,20.275,58.0]
[1693950747094,0.49999999,20.291,20.277,3.0]
[1693950747293,0.49999999,20.291,20.277,65.693]
[1693950747603,30.03999999,20.291,20.277,65.693]
[1693950748699,29.54,20.29,20.277,65.693]
[1693950748894,0.49999999,20.289,20.277,90.548]
[1693950749093,0.49999999,20.291,20.277,90.548]
[1693950749489,20.49999999,20.293,20.277,90.548]
[1693950750192,28.18699999,20.293,20.277,90.548]
[1693950753990,29.54,20.29,20.277,65.693]
[1693950754190,0.49999999,20.289,20.277,65.693]
[1693950754806,0.49999999,20.289,20.277,58.0]
[1693950755102,0.49999999,20.289,20.277,3.0]
[1693950758300,0.49999999,20.289,20.277,10.693]
[1693950758606,0.49999999,20.289,20.279,3.0]
[1693950760897,0.49999999,20.289,20.278,3.0]
[1693950767825,0.49999999,20.289,20.278,10.692]
[1693950772103,8.18899999,20.289,20.278,3.0]
[1693950772323,8.18899999,20.289,20.278,58.0]
[1693950772523,8.18899999,20.289,20.278,3.0]
[1693950772828,8.18899999,20.289,20.277,3.0]
[1693950779030,8.18899999,20.289,20.277,10.693]
[1693950779230,8.18899999,20.289,20.278,55.0]
[1693950779530,8.18899999,20.289,20.279,3.0]
[1693950781828,8.18899999,20.289,20.278,55.0]
[1693950785639,0.49999999,20.289,20.278,55.0]
[1693950786427,0.49999999,20.289,20.279,0.5]
[1693950788630,0.49999999,20.289,20.278,55.0]
[1693950789137,0.49999999,20.289,20.279,0.5]
[1693950792737,0.49999999,20.289,20.279,8.192]
[1693950793832,0.49999999,20.289,20.281,0.5]
[1693950794032,0.49999999,20.289,20.28,55.0]
[1693950795637,0.49999999,20.289,20.28,62.692]
[1693950795841,4.44461036,20.292,20.281,0.5]
[1693950796927,32.13161036,20.292,20.281,0.5]
[1693950797728,39.81961036,20.292,20.28,55.0]
[1693950797930,39.81961036,20.292,20.281,0.5]
[1693950798228,39.81961036,20.292,20.28,0.5]
[1693950799539,12.13261036,20.292,20.28,0.5]
[1693950800432,36.96661036,20.292,20.28,0.5]
[1693950804234,12.13261036,20.292,20.28,0.5]
[1693950805539,12.13261036,20.292,20.279,62.692]
[1693950805941,12.13261036,20.292,20.28,0.5]
[1693950806937,12.13261036,20.292,20.279,62.692]
[1693950807237,12.13261036,20.292,20.28,0.5]
[1693950807640,12.13261036,20.292,20.279,62.692]
[1693950808040,12.13261036,20.292,20.28,0.5]
[1693950808438,12.13261036,20.292,20.279,62.692]
[1693950809131,12.13261036,20.292,20.28,0.5]
[1693950818239,12.13261036,20.292,20.279,62.692]
[1693950818440,12.13261036,20.292,20.28,0.5]
[1693950825950,4.44461036,20.292,20.28,8.192]
[1693950826141,12.13161036,20.292,20.281,55.0]
[1693950848183,12.13161036,20.292,20.277,39.72767636]
[1693950848384,29.54,20.29,20.278,0.5]
[1693950848583,7.689,20.288,20.274,8.194]
[1693950848893,4.44461036,20.287,20.274,8.194]
[1693950849793,4.44461036,20.287,20.275,55.0]
[1693950849981,4.44461036,20.287,20.276,8.193]
[1693950850174,4.44461036,20.287,20.277,55.0]
[1693950850374,4.44461036,20.287,20.278,0.5]
[1693950850591,4.44461036,20.287,20.278,8.192]
[1693950850791,4.44461036,20.29,20.279,55.0]
[1693950850984,4.44461036,20.29,20.28,0.5]
[1693950851379,12.13261036,20.29,20.28,0.5]
[1693950851787,12.13261036,20.29,20.279,55.0]
[1693950851982,12.13261036,20.29,20.28,0.5]
[1693950853980,41.67261036,20.29,20.28,0.5]
[1693950854179,41.67261036,20.29,20.279,55.0]
[1693950854381,41.67261036,20.29,20.277,55.0]
[1693950854583,41.67261036,20.29,20.278,0.5]
[1693950855079,41.67261036,20.29,20.278,8.192]
[1693950855281,133.35831036,20.29,20.279,55.0]
[1693950857396,103.81831036,20.29,20.279,55.0]
[1693950857794,12.13261036,20.29,20.279,55.0]
[1693950857988,12.13261036,20.29,20.28,0.5]
[1693950861892,41.67261036,20.29,20.28,0.5]
[1693950862992,41.67261036,20.29,20.279,55.0]
[1693950864785,41.67261036,20.29,20.278,55.0]
[1693950864988,41.67261036,20.29,20.279,0.5]
[1693950866783,41.67261036,20.29,20.278,0.5]
[1693950885117,41.67261036,20.29,20.278,8.192]
[1693950885309,41.67261036,20.29,20.279,55.0]
[1693950885501,41.67261036,20.29,20.28,0.5]
[1693950886317,33.98461036,20.29,20.28,0.5]
[1693950888011,7.688,20.289,20.28,0.5]
[1693950888214,4.44461036,20.288,20.279,55.0]
[1693950888406,4.44461036,20.288,20.277,55.0]
[1693950888606,4.44461036,20.288,20.278,0.5]
[1693950898613,7.689,20.287,20.278,0.5]
[1693950898816,4.44461036,20.286,20.278,0.5]
[1693950899017,7.69,20.285,20.278,0.5]
[1693950902832,7.69,20.285,20.277,15.06804732]
[1693950903027,4.44461036,20.284,20.277,15.06804732]
[1693950903210,4.44461036,20.284,20.273,0.5]
[1693950903414,4.44461036,20.284,20.273,75.5]
[1693950903817,12.13561036,20.284,20.273,55.5]
[1693950904125,12.13561036,20.284,20.273,0.5]
[1693950904427,7.691,20.284,20.273,20.5]
[1693950904627,7.691,20.284,20.275,0.5]
[1693950904830,4.44461036,20.283,20.275,0.5]
[1693950907027,7.691,20.284,20.275,0.5]
[1693950908235,4.44461036,20.283,20.275,0.5]
[1693950908437,12.13561036,20.283,20.275,0.5]
[1693950908633,12.13561036,20.283,20.274,55.0]
[1693950908932,12.13561036,20.283,20.269,0.5]
[1693950909135,12.13561036,20.283,20.269,8.196]
[1693950909336,12.13561036,20.283,20.27,20.0]
[1693950909529,12.13561036,20.283,20.271,0.5]
[1693950910238,12.13561036,20.283,20.271,55.5]
[1693950910421,4.44461036,20.283,20.272,20.0]
[1693950910622,4.44461036,20.284,20.273,0.5]
[1693950915521,12.13461036,20.284,20.273,0.5]
[1693950916434,29.54,20.28,20.268,0.5]
[1693950916639,7.693,20.278,20.265,30.5]
[1693950916936,4.44461036,20.277,20.265,30.5]
[1693950917325,12.13761036,20.277,20.265,30.5]
[1693950917527,7.693,20.277,20.265,0.5]
[1693950917842,4.44461036,20.276,20.264,55.5]
[1693950918035,4.44461036,20.276,20.264,0.5]
[1693950918838,94.5522,20.275,20.264,0.5]
[1693950919632,29.54,20.27,20.263,0.5]
[1693950919837,29.54,20.27,20.25,29.54]
[1693950919838,7.696,20.268,20.256,0.5]
[1693950920229,7.696,20.268,20.25,29.54]
[1693950920230,4.44461036,20.267,20.251,20.5]
[1693950920538,7.698,20.265,20.251,20.5]
[1693950921640,37.238,20.265,20.251,20.5]
[1693950922833,91.4418,20.264,20.251,20.5]
[1693950923039,99.1398,20.264,20.251,20.5]
[1693950923848,99.1398,20.264,20.252,55.0]
[1693950924048,99.1398,20.264,20.253,20.5]
[1693950924247,99.1398,20.264,20.254,55.0]
[1693950924439,99.1398,20.264,20.255,0.5]
[1693950924837,91.4418,20.264,20.254,0.5]
[1693950925041,91.4418,20.264,20.252,55.5]
[1693950925243,91.4418,20.264,20.253,20.0]
[1693950925436,91.4418,20.264,20.254,55.5]
[1693950926148,7.697,20.267,20.254,63.201]
[1693950927944,7.697,20.267,20.254,55.5]
[1693950928542,7.697,20.267,20.254,63.201]
[1693950928936,7.697,20.267,20.254,55.5]
[1693950929537,7.697,20.267,20.254,63.201]
[1693950930447,7.697,20.267,20.254,55.5]
[1693950933051,7.697,20.267,20.254,63.202]
[1693950934952,7.697,20.267,20.254,0.5]
[1693950935254,7.697,20.267,20.253,0.5]
[1693950935557,7.697,20.267,20.252,20.5]
[1693950936254,7.697,20.267,20.253,55.0]
[1693950936549,7.697,20.267,20.254,0.5]
[1693950938252,7.697,20.267,20.253,55.5]
[1693950940653,7.697,20.267,20.253,0.5]
[1693950941546,7.697,20.267,20.252,0.5]
[1693950941956,7.697,20.267,20.252,55.5]
[1693950942343,7.697,20.267,20.253,20.0]
[1693950942542,55.0,20.266,20.254,0.5]
[1693950942749,7.698,20.263,20.254,0.5]
[1693950943151,7.698,20.263,20.252,55.5]
[1693950943355,7.698,20.263,20.253,20.0]
[1693950943656,7.698,20.263,20.254,0.5]
[1693950945855,98.6909,20.264,20.254,0.5]
[1693950948044,98.6909,20.264,20.254,63.201]
[1693950948445,7.698,20.263,20.254,55.5]
[1693950951762,7.698,20.263,20.254,0.5]
[1693950952152,7.698,20.263,20.253,0.5]
[1693950952959,7.698,20.263,20.253,20.5]
[1693950953866,7.698,20.263,20.253,0.5]
[1693950954164,7.698,20.263,20.252,55.5]
[1693950954356,7.698,20.263,20.253,20.0]
[1693950954552,7.698,20.263,20.254,0.5]
[1693950956371,7.698,20.263,20.252,55.5]
[1693950956575,7.698,20.263,20.253,20.0]
[1693950956872,7.698,20.263,20.254,0.5]
[1693950960267,7.698,20.263,20.254,55.5]
[1693950982481,106.4276,20.265,20.254,63.202]
[1693950982782,7.698,20.265,20.254,55.5]
[1693950984372,85.04,20.27,20.254,63.201]
[1693950984575,85.04,20.27,20.254,88.084]
[1693950984777,4.44461036,20.269,20.254,142.394]
[1693950985075,37.236,20.27,20.254,142.394]
[1693950989280,7.696,20.27,20.254,142.394]
[1693950992584,7.696,20.27,20.254,167.17246588]
[1693950992789,7.696,20.27,20.255,24.77846588]
[1693950993086,7.696,20.27,20.259,7.699]
[1693950993386,7.696,20.27,20.26,55.5]
[1693951005698,7.696,20.27,20.26,85.04]
[1693951006687,7.693,20.277,20.264,7.698]
[1693951006898,7.693,20.277,20.265,55.0]
[1693951007202,4.44461036,20.278,20.265,62.697]
[1693951008097,33.98461036,20.278,20.265,62.697]
[1693951008791,4.44461036,20.278,20.27,29.54]
[1693951008994,30.53505281,20.287,20.272,0.5]
[1693951008995,7.69,20.286,20.272,0.5]
[1693951009185,4.44461036,20.285,20.272,55.5]
[1693951009384,4.44461036,20.285,20.274,0.5]
[1693951009584,4.44461036,20.285,20.274,55.5]
[1693951014890,4.44461036,20.287,20.274,55.5]
[1693951017287,4.44461036,20.287,20.275,7.694]
[1693951017506,4.44461036,20.289,20.277,0.5]
[1693951017900,41.67261036,20.289,20.277,0.5]
[1693951018099,41.67261036,20.289,20.276,55.0]
[1693951018695,41.67261036,20.289,20.277,0.5]
[1693951030211,4.44461036,20.289,20.278,7.692]
[1693951030515,4.44461036,20.289,20.28,7.692]
[1693951030711,24.44461036,20.293,20.281,55.5]
[1693951030916,24.44461036,20.293,20.281,63.191]
[1693951031116,24.44461036,20.293,20.281,62.691]
[1693951032207,4.44461036,20.293,20.281,87.541]
[1693951032407,4.44461036,20.299,20.282,20.5]
[1693951032719,4.44461036,20.299,20.286,7.689]
[1693951033013,4.44461036,20.299,20.287,62.689]
[1693951033216,4.44461036,20.299,20.288,55.0]
[1693951033620,33.98461036,20.299,20.288,55.0]
[1693951041840,41.66961036,20.299,20.288,55.0]
[1693951042041,41.66961036,20.299,20.286,55.0]
[1693951053439,41.66961036,20.299,20.286,62.689]
[1693951064548,33.98461036,20.299,20.286,62.689]
[1693951071055,33.98461036,20.299,20.287,0.5]
[1693951071456,129.47141036,20.299,20.287,0.5]
[1693951077973,129.47141036,20.299,20.287,8.189]
[1693951078162,129.47141036,20.299,20.289,0.5]
[1693951078362,129.47141036,20.299,20.288,55.0]
[1693951079562,129.47141036,20.299,20.287,7.689]
[1693951079762,129.47141036,20.299,20.288,55.0]
[1693951081575,129.47141036,20.299,20.289,0.5]
[1693951081767,129.47141036,20.299,20.288,55.0]
[1693951083473,99.93141036,20.299,20.288,62.689]
[1693951083676,99.93141036,20.299,20.289,0.5]
[1693951083876,7.683,20.303,20.289,0.5]
[1693951083877,4.44461036,20.302,20.29,7.688]
[1693951084077,87.13361036,20.302,20.291,55.0]
[1693951091785,94.81761036,20.302,20.291,55.0]
[1693951091974,94.81761036,20.302,20.289,55.0]
[1693951101979,32.12861036,20.302,20.29,0.5]
[1693951106287,32.12861036,20.302,20.289,55.0]
[1693951106590,32.12861036,20.302,20.29,0.5]
[1693951106987,4.44461036,20.302,20.292,7.687]
[1693951107188,93.0227,20.304,20.293,55.5]
[1693951107393,93.0227,20.304,20.293,63.187]
[1693951109193,4.44461036,20.303,20.293,63.187]
[1693951109692,4.44461036,20.306,20.293,63.187]
[1693951109893,4.44461036,20.307,20.293,63.187]
[1693951110478,4.44461036,20.307,20.293,62.687]
[1693951111105,18.96112095,20.307,20.293,62.687]
[1693951119604,18.96112095,20.307,20.294,0.5]
[1693951119794,18.96112095,20.307,20.296,7.685]
[1693951119995,18.96112095,20.307,20.297,55.0]
[1693951120397,4.44461036,20.307,20.297,62.685]
[1693951120803,4.44461036,20.309,20.297,62.685]
[1693951120998,48.793876,20.309,20.297,62.685]
[1693951125402,4.44461036,20.309,20.297,62.685]
[1693951125601,4.44461036,20.31,20.297,62.685]
[1693951127205,4.44461036,20.311,20.297,62.685]
[1693951128098,24.44461036,20.311,20.297,62.685]
[1693951130006,4.44461036,20.311,20.3,29.54]
[1693951130208,24.44461036,20.313,20.301,55.5]
[1693951130413,24.44461036,20.313,20.301,55.0]
[1693951131207,24.44461036,20.313,20.301,62.684]
[1693951132808,24.44461036,20.313,20.302,0.5]
[1693951133514,24.44461036,20.313,20.301,62.684]
[1693951133908,24.44461036,20.313,20.302,0.5]
[1693951134108,24.44461036,20.313,20.301,62.684]
[1693951135813,24.44461036,20.313,20.301,87.51]
[1693951136017,20.0,20.315,20.302,0.5]
[1693951136311,4.44461036,20.312,20.297,7.685]
[1693951136507,7.681,20.31,20.297,7.685]
[1693951136708,4.44461036,20.309,20.297,7.685]
[1693951136901,4.44461036,20.311,20.297,7.685]
[1693951137103,39.956629,20.31,20.297,7.685]
[1693951137415,4.44461036,20.309,20.297,7.685]
[1693951137802,4.44461036,20.309,20.298,55.0]
[1693951139013,4.44461036,20.309,20.298,62.685]
[1693951146112,4.44461036,20.309,20.298,55.0]
[1693951146309,7.681,20.31,20.297,55.0]
[1693951146615,7.681,20.31,20.298,0.5]
[1693951147217,4.44461036,20.309,20.297,62.685]
[1693951147412,4.44461036,20.309,20.298,0.5]
[1693951150411,4.44461036,20.309,20.298,8.185]
[1693951150612,4.44461036,20.31,20.299,55.0]
[1693951152127,4.44461036,20.31,20.299,62.684]
[1693951152331,4.44461036,20.311,20.299,62.684]
[1693951152625,12.12461036,20.311,20.299,55.0]
[1693951152830,12.12461036,20.311,20.298,55.0]
[1693951153029,12.12461036,20.311,20.299,0.5]
[1693951153416,12.12461036,20.311,20.298,55.0]
[1693951153818,4.44461036,20.311,20.298,7.685]
[1693951154125,4.44461036,20.311,20.299,55.0]
[1693951154326,12.12461036,20.311,20.299,55.0]
[1693951154622,12.12461036,20.311,20.297,55.0]
[1693951155126,12.12461036,20.311,20.298,7.685]
[1693951155322,12.12461036,20.311,20.299,55.0]
[1693951155723,12.12461036,20.311,20.297,55.0]
[1693951155927,12.12461036,20.311,20.297,62.685]
[1693951169940,12.12461036,20.311,20.298,0.49906996]
[1693951170142,12.12461036,20.311,20.297,62.685]
[1693951170832,12.12461036,20.311,20.298,0.5]
[1693951172046,12.12461036,20.311,20.297,62.685]
[1693951172244,12.12461036,20.311,20.298,0.5]
[1693951173530,12.12461036,20.311,20.296,0.5]
[1693951173946,12.12461036,20.311,20.296,55.5]
[1693951175236,12.12461036,20.311,20.298,7.685]
[1693951175435,12.12461036,20.311,20.299,55.5]
[1693951175641,7.68,20.311,20.299,55.5]
[1693951175839,4.44461036,20.31,20.299,55.0]
[1693951176141,7.681,20.309,20.299,55.0]
[1693951177638,7.681,20.309,20.294,7.686]
[1693951177841,7.681,20.309,20.29,29.54]
[1693951177842,79.44461036,20.308,20.29,29.54]
[1693951178051,32.507,20.303,20.29,29.54]
[1693951178248,24.44461036,20.302,20.29,29.54]
[1693951178453,7.684,20.301,20.29,37.228]
[1693951178636,4.44461036,20.3,20.29,37.228]
[1693951179242,4.44461036,20.3,20.291,55.0]
[1693951180049,7.684,20.301,20.291,55.0]
[1693951180246,2.00928528,20.3,20.291,55.0]
[1693951181058,9.69328528,20.3,20.291,55.0]
[1693951181263,7.684,20.3,20.291,55.0]
[1693951183964,7.684,20.3,20.29,29.54]
[1693951184266,7.684,20.3,20.289,7.688]
[1693951184267,2.14912662,20.299,20.289,7.688]
[1693951184862,2.14912662,20.299,20.286,24.843]
[1693951185066,9.83412662,20.299,20.287,7.689]
[1693951186565,9.83412662,20.299,20.288,55.0]
[1693951186765,7.685,20.299,20.289,0.5]
[1693951188677,2.02238911,20.3,20.289,8.188]
[1693951188870,9.70638911,20.3,20.289,8.188]
[1693951189072,7.684,20.3,20.289,8.188]
[1693951189262,7.684,20.3,20.289,0.5]
[1693951196867,2.21035631,20.299,20.289,0.5]
[1693951197272,2.21035631,20.299,20.289,8.188]
[1693951197466,7.684,20.3,20.289,7.688]
[1693951198184,2.21035631,20.299,20.289,7.688]
[1693951198573,7.684,20.3,20.289,7.688]
[1693951198773,2.21035631,20.299,20.289,7.688]
[1693951199687,7.684,20.3,20.289,7.688]
[1693951200588,2.22190039,20.299,20.289,7.688]
[1693951203494,7.684,20.3,20.289,7.688]
[1693951203994,2.36858342,20.299,20.289,7.688]
[1693951205694,2.36858342,20.299,20.288,55.0]
[1693951206793,10.05358342,20.299,20.288,62.689]
[1693951206980,7.685,20.299,20.288,62.689]
[1693951209194,7.685,20.299,20.288,7.689]
[1693951209398,2.89069454,20.298,20.288,7.689]
[1693951210682,7.685,20.299,20.288,7.689]
[1693951210891,2.92382675,20.298,20.288,7.689]
[1693951212992,3.21386457,20.3,20.29,29.54]
[1693951213189,7.684,20.301,20.291,55.0]
[1693951213390,2.00267355,20.3,20.291,55.0]
[1693951217499,7.684,20.301,20.291,55.0]
[1693951217700,1.98776842,20.3,20.291,55.0]
[1693951218701,7.684,20.301,20.291,55.0]
[1693951218886,2.33257033,20.3,20.291,55.0]
[1693951220087,7.684,20.301,20.291,55.0]
[1693951220490,2.07939856,20.3,20.291,55.0]
[1693951220796,7.684,20.301,20.291,55.0]
[1693951221295,2.05634172,20.3,20.291,55.0]
[1693951223807,7.684,20.301,20.291,55.0]
[1693951224396,2.06266422,20.3,20.291,55.0]
[1693951224809,7.684,20.301,20.291,55.0]
[1693951227096,7.684,20.301,20.29,29.54]
[1693951227507,7.684,20.301,20.291,0.5]
[1693951227902,7.684,20.301,20.29,29.54]
[1693951228411,7.684,20.301,20.291,0.5]
[1693951229615,7.684,20.301,20.29,29.54]
[1693951234808,7.684,20.301,20.291,0.5]
[1693951238717,7.684,20.301,20.29,29.54]
[1693951240215,7.684,20.301,20.291,0.5]
[1693951240717,7.684,20.301,20.29,29.54]
[1693951240918,7.684,20.301,20.291,0.49461071]
[1693951243319,7.684,20.301,20.29,0.5]
[1693951243823,2.39920468,20.3,20.289,7.688]
[1693951244002,10.08420468,20.3,20.289,7.688]
[1693951244205,7.685,20.3,20.289,7.688]
[1693951244406,7.685,20.3,20.29,0.5]
[1693951245318,7.685,20.3,20.289,7.688]
[1693951247219,7.685,20.3,20.29,0.5]
[1693951247423,7.685,20.3,20.289,7.688]
[1693951248110,7.685,20.3,20.29,0.49464242]
[1693951248310,7.685,20.3,20.289,7.688]
[1693951251818,7.685,20.3,20.29,0.5]
[1693951252221,2.53941923,20.299,20.289,7.688]
[1693951252423,7.685,20.3,20.289,7.688]
[1693951254232,2.97165386,20.299,20.289,7.688]
[1693951255323,7.685,20.3,20.289,7.688]
[1693951255524,3.01798925,20.299,20.288,0.5]
[1693951256028,7.685,20.3,20.288,63.189]
[1693951258212,3.01798925,20.299,20.288,62.689]
[1693951258412,7.685,20.3,20.289,0.5]
[1693951268535,3.04084468,20.299,20.287,8.189]
[1693951268833,3.04084468,20.299,20.287,7.689]
[1693951268834,10.72584468,20.299,20.287,7.689]
[1693951272737,3.04084468,20.299,20.287,7.689]
[1693951273035,3.04084468,20.299,20.288,0.5]
[1693951273247,65.72584468,20.299,20.288,0.5]
[1693951273448,65.72584468,20.299,20.283,20.5]
[1693951274341,65.72584468,20.299,20.283,28.19]
[1693951283454,58.04084468,20.299,20.283,20.5]
[1693951283642,58.04084468,20.299,20.283,0.5]
[1693951283841,65.72584468,20.299,20.283,7.69]
[1693951284144,65.72584468,20.299,20.284,8.19]
[1693951289951,65.72584468,20.299,20.284,0.5]
[1693951290136,20.0,20.298,20.28,8.192]
[1693951290341,32.523,20.293,20.28,0.5]
[1693951290642,4.44461036,20.292,20.279,0.5]
[1693951290840,29.54,20.29,20.279,0.5]
[1693951291044,29.54,20.29,20.274,7.694]
[1693951291045,32.532,20.287,20.275,0.5]
[1693951291233,4.44461036,20.286,20.271,20.5]